fUST/lending_fUST_20260208
["ID","MTS","AMOUNT","RATE_DAILY","PERIOD"]
[404770285,1770523839572,-959.79524651,0.00022329,2]
[404770286,1770523839581,-959.79524651,0.00022329,2]
[404770287,1770523839590,-959.79524651,0.00022329,2]
[404770288,1770523839603,-959.79524651,0.00022329,2]
[404770289,1770523839613,-959.79524651,0.00022329,2]
[404770290,1770523839623,-500.0,0.00022329,2]
[404770291,1770523839632,-500.0,0.00022329,2]
[404770292,1770523839640,-182.24647529,0.00022329,2]
[404770293,1770523839649,-500.0,0.00022329,2]
[404770294,1770523839658,-500.0,0.00022329,2]
[404770295,1770523839667,-500.0,0.00022329,2]
[404770296,1770523839677,-500.0,0.00022329,2]
[404770297,1770523839686,-500.0,0.00022329,2]
[404770298,1770523839695,-944.79844577,0.00022329,2]
[404770299,1770523839704,-944.79844577,0.00022329,2]
[404770300,1770523839713,-944.79844577,0.00022329,2]
[404770301,1770523839723,-944.79844577,0.00022329,2]
[404770302,1770523839732,-944.79844577,0.00022329,2]
[404770303,1770523839742,-944.79844577,0.00022329,2]
[404770304,1770523839751,-944.79844577,0.00022329,2]
[404770305,1770523839761,-944.79844577,0.00022329,2]
[404770306,1770523839770,-944.79844577,0.00022329,2]
[404770307,1770523839779,-944.79844577,0.00022329,2]
[404770308,1770523839789,-944.79844577,0.00022329,2]
[404770309,1770523839798,-944.79844577,0.00022329,2]
[404770310,1770523839808,-944.79844577,0.00022329,2]
[404770311,1770523839817,-944.79844577,0.00022329,2]
[404770312,1770523839826,-944.79844577,0.00022329,2]
[404770313,1770523839836,-944.79844577,0.00022329,2]
[404770314,1770523839845,-944.79844577,0.00022329,2]
[404770315,1770523839854,-944.79844577,0.00022329,2]
[404770316,1770523839864,-944.79844577,0.00022329,2]
[404770317,1770523839873,-944.79844577,0.00022329,2]
[404770318,1770523839882,-944.79844577,0.00022329,2]
[404770319,1770523839894,-944.79844577,0.00022329,2]
[404770320,1770523839904,-944.79844577,0.00022329,2]
[404770321,1770523839913,-944.79844577,0.00022329,2]
[404770322,1770523839923,-944.79844577,0.00022329,2]
[404770323,1770523839932,-944.79844577,0.00022329,2]
[404770324,1770523839942,-944.79844577,0.00022329,2]
[404770325,1770523839951,-944.79844577,0.00022329,2]
[404770326,1770523839961,-944.79844577,0.00022329,2]
[404770327,1770523839970,-944.79844577,0.00022329,2]
[404770328,1770523839980,-944.79844577,0.00022329,2]
[404770329,1770523839989,-944.79844577,0.00022329,2]
[404770330,1770523839999,-666.0,0.00022437,2]
[404770331,1770523840008,-170.978,0.00022437,2]
[404770332,1770523840017,-666.0,0.00022532,2]
[404770333,1770523840027,-666.0,0.00022625,2]
[404770334,1770523840037,-666.0,0.00022684,2]
[404770335,1770523840047,-600.0,0.00022706,10]
[404770336,1770523840058,-666.0,0.00022721,2]
[404770337,1770523840069,-666.0,0.0002273,2]
[404770338,1770523840078,-666.0,0.00022822,2]
[404770339,1770523840087,-204.0,0.00022847,2]
[404770340,1770523840096,-197.51,0.00022847,2]
[404770341,1770523840106,-197.51,0.00022847,2]
[404770342,1770523840115,-666.0,0.0002288,2]
[404770343,1770523840124,-204.0,0.00022947,2]
[404770344,1770523840133,-666.0,0.00022948,2]
[404770345,1770523840142,-666.0,0.00022951,2]
[404770346,1770523840151,-666.0,0.00023058,2]
[404770347,1770523840160,-666.0,0.00023147,2]
[404770348,1770523840169,-666.0,0.00023175,2]
[404770349,1770523840178,-666.0,0.00023295,2]
[404770350,1770523840187,-666.0,0.00023428,2]
[404770351,1770523840197,-666.0,0.00023595,2]
[404770353,1770523840206,-1200.0,0.00023658,2]
[404770354,1770523840215,-402.43807881,0.00023676,2]
[404770355,1770523840224,-666.0,0.00023711,2]
[404770356,1770523840233,-500.0,0.00023746,2]
[404770357,1770523840242,-1311.5575857,0.00023747,2]
[404770358,1770523840251,-666.0,0.00023849,2]
[404770359,1770523840260,-160.52811531,0.0002415,2]
[404770361,1770523840269,-326.48854026,0.0002415,2]
[404770362,1770523840278,-262.8993536,0.00024923,2]
[404770363,1770523840288,-231.0,0.00024947,2]
[404770365,1770523840297,-251.28904101,0.00024973,2]
[404770366,1770523840306,-720.0,0.00024977,10]
[404770367,1770523840323,-155.848,0.00025203,2]
[404770368,1770523840332,-259.04613723,0.00025203,2]
[404770369,1770523840342,-500.0,0.00025325,2]
[404770370,1770523840352,-183.32292818,0.00025325,2]
[404770371,1770523840361,-14949.87056985,0.00025326,2]
[404770372,1770523840373,-346.60229192,0.00025421,2]
[404770373,1770523840385,-153.15809167,0.00026491,2]
[404770374,1770523840395,-174.70414707,0.00026947,2]
[404770375,1770523840407,-155.69,0.00027396,2]
[404770376,1770523840419,-252.58314908,0.00027397,5]
[404770377,1770523840430,-254.35572381,0.00027397,5]
[404770378,1770523840440,-864.0,0.00027474,30]
[404770379,1770523840451,-741.77891082,0.00028015,2]
[404770380,1770523840462,-200.0,0.00028016,2]
[404770381,1770523840471,-359.6079631,0.00028156,2]
[404770382,1770523840482,-2926.9359717,0.00028736,2]
[404770383,1770523840492,-1000.0,0.00028767,30]
[404770384,1770523840502,-781.0,0.000289,2]
[404770385,1770523840510,-298.77799287,0.00029106,2]
[404770386,1770523840521,-257.24792067,0.00029106,2]
[404770387,1770523840532,-1000.0,0.00030222,30]
[404770388,1770523840542,-487.94484214,0.0003046,2]
[404770389,1770523840552,-186.372621,0.00030503,2]
[404770390,1770523840562,-628.0,0.00030702,30]
[404770391,1770523840573,-150.347343,0.000313,2]
[404770392,1770523840583,-186.372621,0.00032644,2]
[404770393,1770523840592,-151.0,0.00032877,31]
[404770394,1770523840601,-151.0,0.00032877,31]
[404770395,1770523840612,-156.857082,0.00032877,31]
[404770396,1770523840622,-151.0,0.00032877,31]
[404770397,1770523840634,-151.0,0.00032877,31]
[404770398,1770523840643,-151.0,0.00032877,31]
[404770399,1770523840654,-238.293171,0.00032877,31]
[404770400,1770523840664,-151.0,0.00032877,31]
[404770401,1770523840674,-151.0,0.00032877,31]
[404770402,1770523840683,-151.0,0.00032877,31]
[404770403,1770523840693,-247.606494,0.00032877,31]
[404770404,1770523840702,-1000.0,0.00033244,30]
[404770405,1770523840712,-244.0,0.00033244,30]
[404770406,1770523840721,-157.208661,0.00034105,60]
[404770407,1770523840731,-158.410105,0.00034105,60]
[404770408,1770523840740,-159.611549,0.00034105,60]
[404770409,1770523840749,-160.812992,0.00034105,60]
[404770410,1770523840759,-150.0,0.00034105,60]
[404770411,1770523840768,-162.895814,0.00034105,60]
[404770412,1770523840778,-175.791629,0.00034105,60]
[404770413,1770523840787,-188.687443,0.00034105,60]
[404770414,1770523840796,-201.583258,0.00034105,60]
[404770415,1770523840805,-214.479072,0.00034105,60]
[404770416,1770523840814,-227.374887,0.00034105,60]
[404770417,1770523840824,-240.270701,0.00034105,60]
[404770418,1770523840833,-253.166516,0.00034105,60]
[404770419,1770523840842,-266.06233,0.00034105,60]
[404770420,1770523840851,-294.546783,0.00034105,60]
[404770421,1770523840861,-186.372621,0.00034784,2]
[404770422,1770523840870,-166.0,0.00034787,7]
[404770423,1770523840879,-349.0,0.00034787,7]
[404770424,1770523840888,-166.0,0.00034787,7]
[404770425,1770523840897,-349.0,0.00034787,7]
[404770426,1770523840906,-152.0,0.00034787,7]
[404770427,1770523840915,-349.0,0.00034787,7]
[404770428,1770523840924,-151.0,0.00034787,7]
[404770429,1770523840933,-349.0,0.00034787,7]
[404770430,1770523840942,-166.0,0.00034787,7]
[404770431,1770523840951,-152.0,0.00034787,7]
[404770432,1770523840961,-151.0,0.00034787,7]
[404770433,1770523840971,-349.0,0.00034787,7]
[404770434,1770523840980,-152.0,0.00034787,7]
[404770435,1770523840989,-166.0,0.00034787,7]
[404770436,1770523840998,-151.0,0.00034787,7]
[404770437,1770523841009,-349.0,0.00034787,7]
[404770438,1770523841019,-152.0,0.00034787,7]
[404770439,1770523841030,-151.0,0.00034787,7]
[404770440,1770523841040,-349.0,0.00034787,7]
[404770441,1770523841049,-152.0,0.00034787,7]
[404770442,1770523841058,-166.0,0.00034787,7]
[404770443,1770523841067,-151.0,0.00034787,7]
[404770444,1770523841076,-349.0,0.00034787,7]
[404770445,1770523841090,-166.0,0.00034787,7]
[404770446,1770523841099,-152.0,0.00034787,7]
[404770447,1770523841108,-151.0,0.00034787,7]
[404770448,1770523841119,-166.0,0.00034787,7]
[404770449,1770523841129,-152.0,0.00034787,7]
[404770450,1770523841138,-349.0,0.00034787,7]
[404770451,1770523841147,-151.0,0.00034787,7]
[404770452,1770523841156,-172.0,0.00034787,7]
[404770453,1770523841165,-152.0,0.00034787,7]
[404770454,1770523841174,-349.0,0.00034787,7]
[404770455,1770523841184,-151.0,0.00034787,7]
[404770456,1770523841193,-152.0,0.00034787,7]
[404770457,1770523841202,-349.0,0.00034787,7]
[404770458,1770523841211,-151.0,0.00034787,7]
[404770459,1770523841220,-152.0,0.00034787,7]
[404770460,1770523841229,-349.0,0.00034787,7]
[404770461,1770523841238,-223.88241345,0.00034787,7]
[404770462,1770523841247,-349.0,0.00034787,7]
[404770463,1770523841256,-152.0,0.00034787,7]
[404770464,1770523841265,-151.0,0.00034787,7]
[404770465,1770523841274,-349.0,0.00034787,7]
[404770466,1770523841283,-152.0,0.00034787,7]
[404770467,1770523841292,-151.0,0.00034787,7]
[404770468,1770523841301,-349.0,0.00034787,7]
[404770469,1770523841310,-152.0,0.00034787,7]
[404770470,1770523841319,-151.0,0.00034787,7]
[404770471,1770523841328,-349.0,0.00034787,7]
[404770472,1770523841337,-152.0,0.00034787,7]
[404770473,1770523841346,-151.0,0.00034787,7]
[404770474,1770523841356,-349.0,0.00034787,7]
[404770475,1770523841365,-152.0,0.00034787,7]
[404770476,1770523841374,-349.0,0.00034787,7]
[404770477,1770523841384,-217.46187407,0.00034787,7]
[404770478,1770523841395,-349.0,0.00034787,7]
[404770479,1770523841409,-152.0,0.00034787,7]
[404770480,1770523841420,-151.0,0.00034787,7]
[404770481,1770523841430,-349.0,0.00034787,7]
[404770482,1770523841442,-152.0,0.00034787,7]
[404770483,1770523841454,-151.0,0.00034787,7]
[404770484,1770523841463,-349.0,0.00034787,7]
[404770485,1770523841472,-152.0,0.00034787,7]
[404770486,1770523841483,-152.0,0.00034787,7]
[404770487,1770523841494,-151.0,0.00034787,7]
[404770488,1770523841505,-349.0,0.00034787,7]
[404770489,1770523841517,-151.0,0.00034787,7]
[404770490,1770523841526,-349.0,0.00034787,7]
[404770491,1770523841538,-292.0,0.00034787,7]
[404770492,1770523841547,-152.0,0.00034787,7]
[404770493,1770523841558,-349.0,0.00034787,7]
[404770494,1770523841569,-349.0,0.00034787,7]
[404770495,1770523841579,-240.0,0.00034787,7]
[404770496,1770523841590,-168.0,0.00034787,7]
[404770497,1770523841601,-349.0,0.00034787,7]
[404770498,1770523841611,-349.0,0.00034787,7]
[404770499,1770523841622,-168.0,0.00034787,7]
[404770500,1770523841632,-349.0,0.00034787,7]
[404770501,1770523841642,-336.0,0.00034787,7]
[404770502,1770523841660,-170.81035171,0.00034787,7]
[404770503,1770523841683,-349.0,0.00034787,7]
[404770504,1770523841692,-336.0,0.00034787,7]
[404770505,1770523841702,-349.0,0.00034787,7]
[404770506,1770523841714,-336.0,0.00034787,7]
[404770507,1770523841723,-349.0,0.00034787,7]
[404770508,1770523841732,-336.0,0.00034787,7]
[404770509,1770523841741,-349.0,0.00034787,7]
[404770510,1770523841750,-336.0,0.00034787,7]
[404770511,1770523841760,-349.0,0.00034787,7]
[404770512,1770523841769,-336.0,0.00034787,7]
[404770513,1770523841779,-349.0,0.00034787,7]
[404770514,1770523841800,-336.0,0.00034787,7]
[404770515,1770523841819,-349.0,0.00034787,7]
[404770516,1770523841828,-336.0,0.00034787,7]
[404770517,1770523841838,-349.0,0.00034787,7]
[404770518,1770523841847,-336.0,0.00034787,7]
[404770519,1770523841856,-349.0,0.00034787,7]
[404770520,1770523841866,-336.0,0.00034787,7]
[404770521,1770523841875,-741.77891082,0.00034787,7]
[404770522,1770523841885,-349.0,0.00034787,7]
[404770523,1770523841894,-336.0,0.00034787,7]
[404770524,1770523841904,-349.0,0.00034787,7]
[404770525,1770523841914,-336.0,0.00034787,7]
[404770526,1770523841923,-349.0,0.00034787,7]
[404770527,1770523841932,-336.0,0.00034787,7]
[404770528,1770523841945,-349.0,0.00034787,7]
[404770529,1770523841955,-336.0,0.00034787,7]
[404770530,1770523841964,-349.0,0.00034787,7]
[404770531,1770523841973,-336.0,0.00034787,7]
[404770532,1770523841983,-336.0,0.00034787,7]
[404770533,1770523841993,-349.0,0.00034787,7]
[404770534,1770523842003,-336.0,0.00034787,7]
[404770535,1770523842014,-349.0,0.00034787,7]
[404770536,1770523842024,-336.0,0.00034787,7]
[404770537,1770523842035,-349.0,0.00034787,7]
[404770538,1770523842045,-336.0,0.00034787,7]
[404770539,1770523842055,-349.0,0.00034787,7]
[404770540,1770523842066,-336.0,0.00034787,7]
[404770541,1770523842076,-178.34397128,0.00034787,7]
[404770542,1770523842086,-336.0,0.00034787,7]
[404770543,1770523842095,-336.0,0.00034787,7]
[404770544,1770523842104,-336.0,0.00034787,7]
[404770545,1770523842114,-336.0,0.00034787,7]
[404770546,1770523842124,-336.0,0.00034787,7]
[404770547,1770523842136,-336.0,0.00034787,7]
[404770548,1770523842146,-336.0,0.00034787,7]
[404770549,1770523842155,-336.0,0.00034787,7]
[404770550,1770523842166,-336.0,0.00034787,7]
[404770551,1770523842175,-336.0,0.00034787,7]
[404770552,1770523842186,-336.0,0.00034787,7]
[404770553,1770523842196,-336.0,0.00034787,7]
[404770554,1770523842206,-336.0,0.00034787,7]
[404770555,1770523842218,-336.0,0.00034787,7]
[404770556,1770523842228,-336.0,0.00034787,7]
[404770557,1770523842238,-336.0,0.00034787,7]
[404770558,1770523842247,-336.0,0.00034787,7]
[404770559,1770523842257,-336.0,0.00034787,7]
[404770560,1770523842266,-336.0,0.00034787,7]
[404770561,1770523842276,-336.0,0.00034787,7]
[404770562,1770523842287,-336.0,0.00034787,7]
[404770563,1770523842301,-336.0,0.00034787,7]
[404770564,1770523842311,-336.0,0.00034787,7]
[404770565,1770523842320,-336.0,0.00034787,7]
[404770566,1770523842331,-336.0,0.00034787,7]
[404770567,1770523842340,-336.0,0.00034787,7]
[404770568,1770523842352,-336.0,0.00034787,7]
[404770569,1770523842361,-339.34580163,0.00034787,7]
[404770570,1770523842371,-177.0,0.00034787,7]
[404770571,1770523842381,-177.0,0.00034787,7]
[404770572,1770523842390,-178.7994851,0.00034787,7]
[404770573,1770523842399,-8843.33,0.000348,14]
[404770574,1770523842410,-436.121706,0.00035028,60]
[404770575,1770523842523,-150.0,0.00035028,60]
[404770576,1770523842534,-154.86069,0.00035028,60]
[404770577,1770523842545,-159.721381,0.00035028,60]
[404770578,1770523842554,-164.582072,0.00035028,60]
[404770579,1770523842563,-169.442763,0.00035028,60]
[404770580,1770523842573,-174.303454,0.00035028,60]
[404770581,1770523842583,-179.164145,0.00035028,60]
[404770582,1770523842593,-184.024836,0.00035028,60]
[404770583,1770523842602,-188.885527,0.00035028,60]
[404770584,1770523842613,-193.746218,0.00035028,60]
[404770585,1770523842623,-150.00001,0.00035028,60]
[404770586,1770523842634,-482.335616,0.00035078,60]
[404770587,1770523842643,-260.0,0.00036,120]
[404770588,1770523842653,-1000.0,0.00036568,30]
[404770589,1770523842662,-492.0,0.00036568,30]
[404770590,1770523842672,-181.08010149,0.00036872,2]
[404770591,1770523842681,-187.78006525,0.00036872,2]
[404770592,1770523842691,-194.72792766,0.00036872,2]
[404770593,1770523842699,-201.93286099,0.00036872,2]
[404770594,1770523842709,-151.99790022,0.00036872,2]
[404770595,1770523842719,-186.372621,0.00036924,2]
[404770596,1770523842729,-8462.46179734,0.00038157,2]
[404770597,1770523842739,-487.94484214,0.0003869,2]
[404770598,1770523842748,-1289.01127998,0.0003879,2]
[404770599,1770523842842,-77.80397104,0.0003879,2]
[404770600,1770523842851,-199.824768,0.000395,120]
[404770601,1770523842861,-214.92755005,0.00039578,120]
[404770602,1770523842871,-214.92755004,0.00039578,120]
[404770603,1770523842880,-151.0,0.00039578,120]
[404770604,1770523842889,-151.0,0.00039578,120]
[404770605,1770523842898,-151.0,0.00039578,120]
[404770606,1770523842907,-151.0,0.00039578,120]
[404770607,1770523842917,-151.0,0.00039578,120]
[404770608,1770523842925,-151.0,0.00039578,120]
[404770609,1770523842935,-151.19996,0.00039578,120]
[404770610,1770523842944,-151.0,0.00039578,120]
[404770611,1770523842953,-151.0,0.00039578,120]
[404770612,1770523842962,-151.0,0.00039578,120]
[404770613,1770523842971,-153.984886,0.00039578,120]
[404770614,1770523842980,-151.0,0.00039726,120]
[404770615,1770523842990,-151.0,0.00039726,120]
[404770616,1770523842999,-151.0,0.00039726,120]
[404770617,1770523843008,-157.011347,0.00039726,120]
[404770618,1770523843017,-3062.30629151,0.0004,120]
[404770619,1770523843027,-21844.44935346,0.0004,120]
[404770620,1770523843038,-1830.79622631,0.0004,120]
[404770621,1770523843049,-4730.26266988,0.0004,120]
[404770622,1770523843216,-18029.02697361,0.0004,120]
[404770623,1770523843225,-168.05936594,0.0004,120]
[404770624,1770523843234,-282.39084053,0.0004,2]
[404770625,1770523843243,-269.9,0.0004,30]
[404770626,1770523843252,-8843.33,0.0004,14]
[404770627,1770523843261,-1000.0,0.00040225,60]
[404770628,1770523843270,-791.0,0.00040225,60]
[404770629,1770523843279,-170.49,0.00041096,120]
[404770630,1770523843289,-166.18,0.00041096,120]
[404770631,1770523843298,-741.77891082,0.0004179,3]
[404770632,1770523843307,-809.96,0.00041791,120]
[404770633,1770523843316,-5091.03697636,0.00042,2]
[404770634,1770523843325,-809.96,0.00042349,120]
[404770635,1770523843335,-151.0,0.000428,14]
[404770636,1770523843346,-809.96,0.00042907,120]
[404770637,1770523843357,-1229.00938208,0.00043065,2]
[404770638,1770523843369,-151.0,0.000431,13]
[404770639,1770523843379,-987.1426,0.0004322,7]
[404770640,1770523843389,-809.96,0.00043466,120]
[404770641,1770523843398,-1044.6390219,0.0004349,3]
[404770642,1770523843408,-230323.08712289,0.000435,120]
[404770666,1770523844834,-31.44755193,0.00039578,120]
[404770667,1770523844846,-119.55244807,0.00039578,120]
[404770668,1770523844855,-58620.35324843,0.000435,120]
[404770673,1770523846644,-1568.53099223,0.000435,120]
[404770674,1770523846655,-1736.897445,0.000435,120]
[404770803,1770524962116,-300.0,0.00022775,10]
[404770804,1770524962138,-300.0,0.00022775,10]
[404770805,1770524962159,-300.0,0.00022775,10]
[404770806,1770524962180,-300.0,0.00022775,10]
[404770807,1770524962213,-300.0,0.00022775,10]
[404770808,1770524962238,-300.0,0.00022775,10]
[404770809,1770524962262,-300.0,0.00022775,10]
[404770810,1770524962283,-300.0,0.00022775,10]
[404770811,1770524962303,-280.49323832,0.00022775,10]
[404770882,1770525037932,-2087.8459996,0.00022547,2]
[404770962,1770525044360,-1841.52067398,0.00022547,2]
[404770963,1770525044370,-19.50676168,0.00022775,10]
[404770965,1770525044380,-300.0,0.00022775,10]
[404770967,1770525044389,-300.0,0.00022775,10]
[404770969,1770525044399,-300.0,0.00022775,10]
[404770970,1770525044408,-300.0,0.00022775,10]
[404770971,1770525044418,-300.0,0.00022775,10]
[404770972,1770525044426,-300.0,0.00022775,10]
[404770973,1770525044435,-206.49872696,0.00022775,2]
[404770974,1770525044445,-1764.36821716,0.00022775,2]
[404770975,1770525044462,-6323.05330968,0.00022775,2]
[404770976,1770525044471,-600.0,0.00023229,10]
[404770977,1770525044480,-1002.18293705,0.00024,2]
[404770978,1770525044490,-720.0,0.00025552,10]
[404770979,1770525044499,-5003.85780871,0.000256,2]
[404770980,1770525044508,-500.0,0.00026574,2]
[404770981,1770525044518,-500.0,0.00026574,2]
[404770982,1770525044527,-500.0,0.00026574,2]
[404770983,1770525044536,-500.0,0.00026574,2]
[404770984,1770525044545,-500.0,0.00026574,2]
[404770985,1770525044555,-500.0,0.00026574,2]
[404770986,1770525044565,-500.0,0.00026574,2]
[404770987,1770525044574,-579.58808495,0.00026574,2]
[404770988,1770525044583,-239.10716015,0.00026574,2]
[404770989,1770525044592,-500.0,0.00026574,2]
[404770990,1770525044601,-500.0,0.00026574,2]
[404770991,1770525044610,-500.0,0.00026574,2]
[404770992,1770525044619,-500.0,0.00026574,2]
[404770993,1770525044629,-500.0,0.00026574,2]
[404770994,1770525044638,-409.13849725,0.00026574,2]
[404770995,1770525044647,-500.0,0.00026574,2]
[404770996,1770525044656,-500.0,0.00026574,2]
[404770997,1770525044666,-500.0,0.00026574,2]
[404770998,1770525044674,-486.26019398,0.00026574,2]
[404770999,1770525044684,-500.0,0.00026574,2]
[404771000,1770525044693,-433.88080138,0.00026574,2]
[404771001,1770525044702,-500.0,0.00026574,2]
[404771002,1770525044712,-500.0,0.00026574,2]
[404771003,1770525044721,-500.0,0.00026574,2]
[404771004,1770525044730,-500.0,0.00026574,2]
[404771005,1770525044740,-500.0,0.00026574,2]
[404771006,1770525044749,-500.0,0.00026574,2]
[404771007,1770525044758,-500.0,0.00026574,2]
[404771008,1770525044768,-500.0,0.00026574,2]
[404771009,1770525044777,-500.0,0.00026574,2]
[404771010,1770525044787,-500.0,0.00026574,2]
[404771011,1770525044796,-500.0,0.00026574,2]
[404771012,1770525044805,-741.77891082,0.00028001,2]
[404771013,1770525044815,-864.0,0.00028108,30]
[404771014,1770525044824,-170.979,0.00028108,18]
[404771015,1770525044837,-1000.0,0.00030918,30]
[404771016,1770525044847,-602.0,0.00032165,30]
[404771017,1770525044857,-300.0,0.00032719,2]
[404771018,1770525044866,-282.0,0.000338,2]
[404771019,1770525044875,-1000.0,0.0003401,30]
[404771020,1770525044885,-244.0,0.0003401,30]
[404771021,1770525044895,-478.32604973,0.00035259,7]
[404771022,1770525044904,-1000.0,0.00037411,30]
[404771023,1770525044913,-492.0,0.00037411,30]
[404771024,1770525044922,-1000.0,0.00038333,30]
[404771025,1770525044932,-460.78799756,0.00039476,2]
[404771026,1770525044941,-151.0,0.00039576,120]
[404771027,1770525044950,-151.0,0.00039576,120]
[404771028,1770525044960,-151.0,0.00039576,120]
[404771029,1770525044970,-184.24657,0.00039576,120]
[404771030,1770525044979,-151.0,0.00039576,120]
[404771031,1770525044989,-154.337183,0.00039576,120]
[404771032,1770525044999,-385.03737919,0.0004,120]
[404771033,1770525045008,-1000.0,0.00041152,60]
[404771034,1770525045018,-791.0,0.00041152,60]
[404771035,1770525045027,-460.78799754,0.00041438,2]
[404771036,1770525045037,-911.21016735,0.00041773,7]
[404771037,1770525045048,-4460.55051638,0.000434,15]
[404771038,1770525045057,-460.78799754,0.000434,2]
[404771039,1770525045067,-371.43,0.0004348,10]
[404771040,1770525045077,-510.48,0.0004348,10]
[404771041,1770525045086,-741.77891082,0.0004349,3]
[404771042,1770525045096,-99383.2571472,0.0004349,3]
[404771043,1770525045105,-151.0,0.0004349,120]
[404771044,1770525045115,-209.486994,0.0004349,120]
[404771045,1770525045125,-151.0,0.0004349,120]
[404771046,1770525045134,-151.0,0.0004349,120]
[404771047,1770525045143,-151.0,0.0004349,120]
[404771048,1770525045152,-151.0,0.0004349,120]
[404771049,1770525045161,-426104.39390113,0.000435,120]
[404771050,1770525045172,-5865.41681443,0.000435,120]
[404771206,1770525304123,500.0,0.00013699,2]
[404771249,1770525604826,158.09,0.00014,2]
[404771250,1770525605450,158.09,0.000151,2]
[404771274,1770526003901,158.0,0.000152,3]
[404771335,1770526240061,-4956.24802947,0.00024952,2]
[404771336,1770526240070,-3776.0,0.00025204,2]
[404771337,1770526240080,-8200.70282805,0.00025205,2]
[404771338,1770526240090,-150.0,0.00025468,2]
[404771339,1770526240099,-170.979,0.0002599,12]
[404771340,1770526240108,-300.0,0.00026308,2]
[404771341,1770526240118,-165.14002155,0.00027384,2]
[404771342,1770526240127,-500.0,0.00027384,2]
[404771343,1770526240136,-603.76453349,0.00027384,2]
[404771344,1770526240145,-285.44791696,0.00027385,30]
[404771345,1770526240198,-14.55208304,0.00027385,30]
[404771346,1770526240207,-300.0,0.00027385,30]
[404771347,1770526240217,-300.0,0.00027385,30]
[404771348,1770526240226,-300.0,0.00027385,30]
[404771349,1770526240235,-300.0,0.00027385,30]
[404771350,1770526240245,-300.0,0.00027385,30]
[404771351,1770526240255,-300.0,0.00027385,30]
[404771352,1770526240264,-300.0,0.00027385,30]
[404771353,1770526240273,-300.0,0.00027385,30]
[404771354,1770526240283,-300.0,0.00027385,30]
[404771355,1770526240297,-300.0,0.00027385,30]
[404771356,1770526240307,-300.0,0.00027385,30]
[404771357,1770526240316,-300.0,0.00027385,30]
[404771358,1770526240327,-300.0,0.00027385,30]
[404771359,1770526240337,-300.0,0.00027385,30]
[404771360,1770526240346,-741.77891082,0.0002805,2]
[404771361,1770526240355,-168.0,0.00028966,2]
[404771362,1770526240365,-168.0,0.00029188,2]
[404771363,1770526240374,-168.0,0.00029419,2]
[404771364,1770526240384,-168.0,0.00029482,2]
[404771365,1770526240393,-168.0,0.00029525,2]
[404771366,1770526240403,-168.0,0.00029597,2]
[404771367,1770526240412,-168.0,0.0002983,2]
[404771368,1770526240421,-168.0,0.00029872,7]
[404771369,1770526240430,-714.92677531,0.00030088,2]
[404771370,1770526240439,-168.0,0.00030196,2]
[404771371,1770526240451,-168.0,0.00030684,2]
[404771372,1770526240460,-168.0,0.00030689,2]
[404771373,1770526240470,-168.0,0.00030796,2]
[404771374,1770526240480,-168.0,0.00030798,2]